bitfinex-derivatives/quotes_SOLF0:USTF0_20250625
["timestamp","ask_amount","ask_price","bid_price","bid_amount"]
[1750839887475,37.96789268,146.24,146.19,6.3974251]
[1750839887673,3.36789268,146.22,146.19,6.3974251]
[1750839888377,10.20359268,146.22,146.2,6.8362]
[1750839889080,6.836,146.21,146.19,13.2340251]
[1750839889288,37.96789268,146.2,146.17,6.3974251]
[1750839890886,6.8369,146.19,146.17,13.2350251]
[1750839895185,44.80449268,146.2,146.17,6.3974251]
[1750839895381,37.96789268,146.2,146.17,6.3974251]
[1750839895785,37.96789268,146.2,146.16,6.3974251]
[1750839896289,6.8373,146.19,146.16,13.2353251]
[1750839896489,37.96789268,146.2,146.16,13.2353251]
[1750839896790,6.8369,146.19,146.16,13.2353251]
[1750839896992,37.96789268,146.2,146.16,13.2353251]
[1750839897883,34.6,146.2,146.16,6.3974251]
[1750839898286,41.4366,146.2,146.18,6.8373]
[1750839898990,34.6,146.2,146.18,6.8373]
[1750839899586,34.6,146.2,146.16,6.3974251]
[1750839899587,37.96789268,146.2,146.16,6.3974251]
[1750839899787,3.36789268,146.18,146.15,6.3974251]
[1750839900184,6.8379,146.17,146.15,13.2360251]
[1750839900497,37.96789268,146.16,146.12,8.7704251]
[1750839900688,34.6,146.15,146.12,6.3974251]
[1750839900998,3.36789268,146.17,146.13,6.3974251]
[1750839901194,37.96789268,146.17,146.14,6.3974251]
[1750839901394,41.4379,146.17,146.14,13.2364251]
[1750839901596,41.4379,146.17,146.14,6.839]
[1750839901992,41.4379,146.17,146.14,13.2364251]
[1750839902792,41.4379,146.17,146.14,6.839]
[1750839903795,37.96789268,146.17,146.13,6.3974251]
[1750839904696,6.839,146.15,146.13,6.3974251]
[1750839904992,37.96789268,146.17,146.13,6.3974251]
[1750839905192,37.96789268,146.17,146.12,15.6454251]
[1750839905793,6.839,146.15,146.12,15.6454251]
[1750839906593,3.36789268,146.15,146.12,6.3974251]
[1750839906797,3.36789268,146.15,146.11,13.2375251]
[1750839907188,6.8396,146.14,146.11,13.2375251]
[1750839907396,6.8396,146.14,146.12,6.8401]
[1750839909187,10.20679268,146.15,146.13,6.8396]
[1750839909587,10.20679268,146.15,146.12,6.3974251]
[1750839909785,6.8392,146.14,146.12,6.8399]
[1750839910295,37.96789268,146.17,146.13,6.8395]
[1750839910692,6.8383,146.16,146.13,6.8395]
[1750839910901,6.8383,146.16,146.13,13.2369251]
[1750839911498,37.96789268,146.17,146.13,13.2369251]
[1750839911499,34.6,146.17,146.13,6.3974251]
[1750839911800,34.6,146.17,146.14,4.5869]
[1750839912098,34.6,146.17,146.15,6.8385]
[1750839912487,34.6,146.17,146.16,6.8383]
[1750839914594,34.56,146.2,146.17,6.8375]
[1750839915790,41.3966,146.2,146.17,6.8375]
[1750839917500,41.3966,146.2,146.18,6.8372]
[1750839918292,34.56,146.2,146.19,6.8368]
[1750839918502,34.56,146.21,146.19,6.8368]
[1750839919003,34.56,146.21,146.2,6.8364]
[1750839920001,34.56,146.21,146.19,6.8367]
[1750839921406,34.56,146.21,146.2,6.8364]
[1750839923595,34.56,146.21,146.18,6.3974251]
[1750839923801,3.36789268,146.2,146.15,6.3974251]
[1750839924198,6.8376,146.18,146.15,13.2357251]
[1750839925203,6.8376,146.18,146.16,6.8382]
[1750839925503,6.8371,146.19,146.16,6.3974251]
[1750839925705,6.8371,146.19,146.17,6.8378]
[1750839925909,10.20449268,146.2,146.16,6.3974251]
[1750839926306,10.20449268,146.2,146.17,6.8375]
[1750839926512,7.63937207,146.2,146.14,10.9843251]
[1750839927510,6.8381,146.17,146.15,6.8385]
[1750839927713,41.3981,146.17,146.15,6.8385]
[1750839928514,6.8383,146.16,146.14,13.2364251]
[1750839928717,34.56,146.17,146.14,13.2364251]
[1750839929302,41.398,146.17,146.14,13.2364251]
[1750839929813,6.8386,146.16,146.14,6.3974251]
[1750839930007,34.56,146.17,146.14,6.3974251]
[1750839930614,6.8383,146.16,146.14,6.3974251]
[1750839931007,34.56,146.17,146.14,6.3974251]
[1750839931607,6.8387,146.15,146.14,6.3974251]
[1750839933425,34.56,146.17,146.14,6.3974251]
[1750839933622,34.56,146.17,146.15,6.3974251]
[1750839934829,34.56,146.17,146.16,6.8383]
[1750839935023,34.56,146.17,146.16,13.2357251]
[1750839935326,6.8371,146.19,146.16,6.3974251]
[1750839935526,44.76449268,146.2,146.17,6.8375]
[1750839936128,6.837,146.19,146.17,6.8375]
[1750839939725,4.2563681,146.19,146.16,13.2355251]
[1750839940232,11.0934681,146.19,146.17,6.8377]
[1750839941836,11.08735558,146.19,146.17,6.8377]
[1750839942327,6.8371,146.19,146.17,6.8377]
[1750839942632,11.08735558,146.19,146.17,6.8377]
[1750839943331,6.8376,146.18,146.16,13.2354251]
[1750839943632,3.36789268,146.18,146.16,6.3974251]
[1750839944131,6.8378,146.17,146.16,6.3974251]
[1750839944930,6.8378,146.17,146.15,13.2361251]
[1750839945333,6.8378,146.17,146.16,6.3974251]
[1750839946036,10.20539268,146.18,146.16,13.2356251]
[1750839946536,10.20539268,146.18,146.16,6.3974251]
[1750839947736,10.20539268,146.18,146.16,13.2356251]
[1750839947939,6.8371,146.19,146.16,6.3974251]
[1750839948233,37.92789268,146.2,146.17,6.8376]
[1750839948538,44.76449268,146.2,146.17,6.8376]
[1750839948833,49.019305,146.2,146.17,6.8376]
[1750839949034,4.25481232,146.19,146.17,6.8376]
[1750839949343,44.76449268,146.2,146.17,13.2350251]
[1750839949522,34.64,146.19,146.17,13.2350251]
[1750839951346,34.64,146.19,146.18,6.8373]
[1750839951839,34.64,146.19,146.18,13.2347251]
[1750839953035,4.2525571,146.2,146.19,6.8369]
[1750839953337,4.2525571,146.21,146.19,13.2343251]
[1750839953532,4.25499874,146.21,146.19,13.2343251]
[1750839955538,44.84359268,146.22,146.19,13.2343251]
[1750839955737,4.26239199,146.21,146.19,13.2343251]
[1750839956041,44.84359268,146.22,146.19,13.2343251]
[1750839956535,4.26222233,146.21,146.19,13.2343251]
[1750839956740,44.84359268,146.22,146.19,13.2343251]
[1750839956941,4.26218959,146.21,146.19,13.2343251]
[1750839957239,4.2619189,146.21,146.19,13.2343251]
[1750839957442,4.2619189,146.21,146.2,6.8364]
[1750839957640,4.2621952,146.21,146.2,6.8364]
[1750839958740,34.64,146.22,146.2,13.2338251]
[1750839959128,34.64,146.22,146.21,6.8359]
[1750839959331,38.90249206,146.22,146.21,6.8359]
[1750839959734,38.90249206,146.22,146.21,6.3974251]
[1750839959933,45.73799206,146.22,146.21,6.3974251]
[1750839960144,41.4755,146.22,146.2,13.2335251]
[1750839960333,45.73799206,146.22,146.2,13.2335251]
[1750839960534,41.4755,146.22,146.2,13.2335251]
[1750839960734,45.73799206,146.22,146.2,13.2335251]
[1750839960949,41.4755,146.22,146.2,13.2335251]
[1750839961228,38.90249206,146.22,146.2,13.2335251]
[1750839961945,34.64,146.22,146.2,13.2335251]
[1750839962146,45.73740733,146.22,146.2,13.2335251]
[1750839962441,41.4755,146.22,146.2,6.3974251]
[1750839962646,45.73740733,146.22,146.2,6.3974251]
[1750839962840,41.4755,146.22,146.2,6.3974251]
[1750839963041,45.73740733,146.22,146.2,6.3974251]
[1750839963241,41.4755,146.22,146.2,6.3974251]
[1750839963539,45.73740733,146.22,146.2,6.3974251]
[1750839963737,41.4755,146.22,146.2,6.3974251]
[1750839963940,38.90190733,146.22,146.2,13.2335251]
[1750839964541,34.64,146.22,146.2,13.2335251]
[1750839964744,38.90190733,146.22,146.2,13.2335251]
[1750839964938,34.64,146.22,146.21,6.8359]
[1750839965145,45.73345375,146.25,146.21,6.3974251]
[1750839965445,4.25925375,146.24,146.21,6.3974251]
[1750839966044,4.25925375,146.24,146.22,6.8355]
[1750839966351,38.89925375,146.25,146.22,6.3974251]
[1750839966939,4.79441304,146.24,146.23,6.835]
[1750839967745,38.89925375,146.25,146.23,6.835]
[1750839967948,4.79502935,146.24,146.23,6.835]
[1750839968544,34.64,146.25,146.24,6.8345]
[1750839968849,39.43167182,146.25,146.24,6.8345]
[1750839969941,34.64,146.25,146.24,6.8345]
[1750839970141,39.43167182,146.25,146.24,6.8345]
[1750839970754,34.64,146.25,146.24,6.8345]
[1750839971144,120.421823,146.27,146.24,6.8345]
[1750839971347,4.79793678,146.26,146.23,6.8347]
[1750839971553,3.36789268,146.25,146.23,6.8347]
[1750839973155,11.63173678,146.26,146.24,6.8345]
[1750839973446,4.79793678,146.26,146.24,6.8345]
[1750839974047,4.79793678,146.26,146.25,6.834]
[1750839974657,34.42,146.28,146.23,8.6452251]
[1750839974959,34.42,146.28,146.24,6.3974251]
[1750839975450,34.42,146.28,146.27,6.8331]
[1750839976353,4.79068821,146.29,146.27,6.8331]
[1750839976548,39.21093655,146.29,146.27,6.8331]
[1750839976756,34.42,146.29,146.27,6.8331]
[1750839977565,41.2522,146.29,146.27,6.8331]
[1750839977951,34.42,146.29,146.28,6.8326]
[1750839978251,34.42,146.29,146.24,6.3974251]
[1750839978453,34.42,146.29,146.27,6.8328]
[1750839980654,41.2522,146.29,146.27,6.8328]
[1750839981461,41.2522,146.29,146.26,6.8333]
[1750839981655,41.2522,146.29,146.24,6.3974251]
[1750839982160,41.2522,146.29,146.27,6.8331]
[1750839983071,34.42,146.29,146.28,6.8326]
[1750839983363,34.42,146.29,146.24,6.3974251]
[1750839984761,34.42,146.29,146.27,6.8328]
[1750839987367,41.2522,146.29,146.27,6.8328]
[1750839987769,34.42,146.29,146.26,6.8334]
[1750839987971,41.2524,146.29,146.26,6.8334]
[1750839989078,41.2524,146.29,146.27,6.833]
[1750839990567,6.8326,146.28,146.26,6.8334]
[1750839991466,44.62029268,146.29,146.27,6.8331]
[1750839994470,37.78789268,146.29,146.24,6.3974251]
[1750839995177,37.78789268,146.29,146.25,6.3974251]
[1750839995377,3.36789268,146.27,146.24,6.3974251]
[1750839995583,3.36789268,146.27,146.23,8.6452251]
[1750839995981,10.20139268,146.27,146.24,6.8344]
[1750839996275,3.36789268,146.27,146.24,6.8344]
[1750839996679,34.42,146.29,146.25,6.834]
[1750839996885,3.36789268,146.28,146.25,6.834]
[1750839997681,6.8334,146.27,146.25,6.834]
[1750839998284,41.2329,146.28,146.23,8.6452251]
[1750839998884,41.2329,146.28,146.25,6.8337]
[1750839999286,41.2329,146.28,146.23,8.6452251]
[1750840000291,41.2329,146.28,146.25,6.8337]
[1750840002983,41.2329,146.28,146.26,6.8335]
[1750840003880,46.0406561,146.28,146.26,6.8335]
[1750840005791,46.04525033,146.28,146.26,6.8335]
[1750840006184,39.21235033,146.28,146.26,6.8335]
[1750840006387,34.4,146.28,146.27,6.8331]
[1750840008392,34.4,146.28,146.27,13.2305251]
[1750840009091,34.4,146.28,146.27,6.8331]
[1750840009994,34.4,146.28,146.27,13.2305251]
[1750840010792,39.21696848,146.28,146.26,13.2309251]
[1750840010986,34.4,146.28,146.26,13.2309251]
[1750840011189,34.4,146.28,146.26,6.3974251]
[1750840011895,34.4,146.28,146.27,6.8331]
[1750840012081,39.21728487,146.28,146.27,6.8331]
[1750840013299,39.21728487,146.28,146.26,13.2307251]
[1750840013488,4.81955556,146.27,146.26,13.2307251]
[1750840014492,4.81955556,146.27,146.26,6.8333]
[1750840014693,4.81991701,146.27,146.26,6.8333]
[1750840019906,34.4,146.28,146.26,6.8333]
[1750840020201,4.81686108,146.27,146.26,6.8333]
[1750840021807,4.81851564,146.27,146.26,6.8333]
[1750840023605,9.08032748,146.27,146.26,6.39708013]
[1750840023806,9.08032748,146.27,146.25,6.39708013]
[1750840024004,18.06709149,146.26,146.25,6.39708013]
[1750840024197,11.23349149,146.26,146.24,6.39708013]
[1750840024502,18.06749149,146.25,146.24,6.39708013]
[1750840024705,18.06879647,146.25,146.23,6.39708013]
[1750840024906,6.97298463,146.24,146.23,6.39708013]
[1750840025299,2.15446899,146.24,146.23,13.23208013]
[1750840025500,6.96807452,146.24,146.23,13.23208013]
[1750840026005,11.22477799,146.24,146.23,13.23208013]
[1750840026308,4.81360553,146.24,146.23,13.23208013]
[1750840026504,11.64810553,146.24,146.23,6.39708013]
[1750840028110,4.81360553,146.24,146.23,13.23208013]
[1750840029409,46.04810553,146.24,146.23,6.39708013]
[1750840029607,46.04810553,146.24,146.21,17.68920013]
[1750840029608,39.21360553,146.24,146.21,15.55638013]
[1750840029816,8.1799238,146.23,146.21,13.23278013]
[1750840030000,6.8355,146.22,146.21,6.39708013]
[1750840031108,6.8359,146.21,146.2,4.66852043]
[1750840031410,8.16830031,146.21,146.17,8.52990013]
[1750840031607,6.8371,146.19,146.16,17.76670013]
[1750840031807,6.8371,146.19,146.16,9.2368]
[1750840032013,11.63856596,146.19,146.16,9.2368]
[1750840032407,6.8375,146.18,146.16,9.2368]
[1750840034215,6.8378,146.17,146.16,2.3988]
[1750840034719,3.36631827,146.19,146.16,2.3988]
[1750840035209,3.36631827,146.17,146.12,10.83220013]
[1750840035514,34.4,146.16,146.12,2.3023]
[1750840035715,41.2386,146.16,146.13,6.8393]
[1750840035911,34.4,146.16,146.13,6.8393]
[1750840036316,41.2384,146.16,146.13,6.8393]
[1750840036616,34.4,146.16,146.13,6.8393]
[1750840036816,41.2385,146.16,146.13,6.8393]
[1750840037426,37.77022636,146.16,146.12,9.1422]
[1750840038214,6.8392,146.15,146.12,9.1422]
[1750840038418,37.77022636,146.16,146.12,2.3023]
[1750840039222,6.8394,146.14,146.12,2.3023]
[1750840039621,37.77022636,146.16,146.12,2.3023]
[1750840039820,3.37022636,146.14,146.1,9.0747]
[1750840040825,6.8406,146.11,146.1,2.2339]
[1750840041720,6.8406,146.11,146.08,6.8419]
[1750840043119,6.8406,146.11,146.09,6.8415]
[1750840043616,6.8406,146.11,146.07,4.5922]
[1750840043617,6.8406,146.11,146.08,6.8418]
[1750840043922,6.8411,146.1,146.08,6.8418]
[1750840044116,37.77022636,146.12,146.08,6.8418]
[1750840044321,6.8409,146.11,146.08,6.8418]
[1750840045134,34.4,146.12,146.07,4.5922]
[1750840047229,34.4,146.12,146.11,6.8406]
[1750840047841,34.4,146.12,146.1,6.8409]
[1750840048931,34.4,146.12,146.11,6.8406]
[1750840053726,34.4,146.12,146.1,6.8408]
[1750840054832,34.4,146.12,146.11,6.8406]
[1750840055830,3.37132396,146.14,146.07,4.5922]
[1750840055831,37.79132396,146.14,146.07,7.96352396]
[1750840056329,34.42,146.14,146.13,6.8397]
[1750840057032,34.42,146.14,146.12,6.8399]
[1750840058130,41.2595,146.14,146.11,6.8404]
[1750840058435,37.79132396,146.14,146.07,4.5922]
[1750840059224,6.8402,146.12,146.1,6.8408]
[1750840060431,6.8399,146.13,146.11,6.8405]
[1750840060632,6.8399,146.13,146.07,4.5922]
[1750840060934,6.8402,146.12,146.07,4.5922]
[1750840061135,6.8402,146.12,146.1,6.8408]
[1750840061938,6.8399,146.13,146.1,6.8408]
[1750840062232,37.79132396,146.14,146.1,6.8408]
[1750840062543,6.8431,146.06,145.99,5.6631612]
[1750840062730,37.7723928,146.06,145.99,10.3802612]
[1750840063036,6.8434,146.05,145.99,10.3802612]
[1750840063242,37.7723928,146.06,145.99,10.3802612]
[1750840063428,3.3723928,146.05,145.99,10.3802612]
[1750840063628,3.3723928,146.03,145.99,10.3802612]
[1750840064135,34.4,146.06,145.99,10.3802612]
[1750840064321,3.3723928,146.03,145.99,10.3802612]
[1750840064526,3.3723928,146.03,145.99,17.2262612]
[1750840064733,10.2170928,146.03,145.99,17.2262612]
[1750840064935,10.2170928,146.03,146.0,6.8457]
[1750840065137,3.3723928,146.03,145.99,10.3802612]
[1750840065638,3.3723928,146.03,146.0,6.8454]
[1750840066333,3.3723928,146.05,145.99,10.3802612]
[1750840066839,3.3723928,146.05,146.02,6.8445]
[1750840067030,3.3723928,146.05,145.99,10.3802612]
[1750840067225,3.37542456,146.04,145.99,10.3802612]
[1750840069836,3.37542456,146.04,146.01,6.845]
[1750840070334,3.37542456,146.04,146.02,6.8447]
[1750840071238,37.77542456,146.09,145.99,10.3802612]
[1750840071435,37.77542456,146.09,146.01,3.37542456]
[1750840071636,6.8423,146.08,146.05,6.8433]
[1750840071843,37.77542456,146.09,146.01,3.37542456]
[1750840072236,44.61722456,146.09,146.01,3.37542456]
[1750840072736,6.8423,146.08,146.01,3.37542456]
[1750840073133,34.4,146.09,145.99,10.3802612]
[1750840073334,34.4,146.09,146.01,3.37542456]
[1750840073534,37.77542456,146.09,146.01,3.37542456]
[1750840073743,37.77542456,146.09,146.01,37.77542456]
[1750840074443,37.77542456,146.09,146.07,6.8425]
[1750840074639,37.77542456,146.09,146.01,37.77542456]
[1750840075032,44.61722456,146.09,146.01,37.77542456]
[1750840075239,37.77542456,146.09,146.01,37.77542456]
[1750840076046,6.842,146.08,146.05,6.8431]
[1750840076547,6.842,146.08,146.06,6.8429]
[1750840077346,6.842,146.08,146.05,6.8432]
[1750840077640,37.77542456,146.09,146.05,6.8432]
[1750840078240,6.8423,146.08,146.05,6.8432]
[1750840080341,6.8423,146.08,146.06,6.8429]
[1750840081846,37.77542456,146.09,146.07,6.8422]
[1750840082249,6.8399,146.13,146.05,3.37542456]
[1750840082452,34.4,146.12,146.1,6.8407]
[1750840082644,34.4,146.12,146.07,3.37542456]
[1750840083147,41.2389,146.15,146.07,3.37542456]
[1750840083354,34.4,146.15,146.09,3.37542456]
[1750840083651,34.4,146.15,146.12,6.8398]
[1750840083954,34.4,146.15,146.09,3.37542456]
[1750840084453,41.2389,146.15,146.12,6.8399]
[1750840090653,6.8393,146.14,146.12,6.8399]
[1750840091346,41.239,146.15,146.12,6.8399]
[1750840092958,6.8393,146.14,146.12,6.8399]
[1750840093461,41.2389,146.15,146.12,6.8399]
[1750840095266,41.2389,146.15,146.13,6.8397]
[1750840108471,41.2389,146.15,146.12,6.8399]
[1750840109770,41.2389,146.15,146.13,6.8396]
[1750840111771,6.8392,146.14,146.12,6.8399]
[1750840112479,6.8398,146.13,146.11,6.8404]
[1750840113469,37.77542456,146.15,146.08,8.71593301]
[1750840114379,6.8405,146.12,146.09,6.8413]
[1750840115179,6.841,146.11,146.08,13.20323301]
[1750840115377,3.37542456,146.11,146.08,6.36153301]
[1750840115576,3.37542456,146.11,146.06,6.36153301]
[1750840115577,3.37542456,146.09,146.06,6.36153301]
[1750840115879,3.37542456,146.09,146.05,13.20473301]
[1750840116379,6.8422,146.08,146.05,13.20473301]
[1750840116573,10.21762456,146.08,146.06,6.8429]
[1750840117672,10.21762456,146.08,146.05,13.20473301]
[1750840118382,10.21762456,146.08,146.06,6.8429]
[1750840119574,3.37542456,146.08,146.06,6.8429]
[1750840119876,3.37542456,146.08,146.06,13.20443301]
[1750840120181,10.21742456,146.08,146.06,13.20443301]
[1750840120480,10.21742456,146.08,146.06,6.8429]
[1750840120676,10.21742456,146.08,146.06,13.20443301]
[1750840120885,10.21742456,146.08,146.06,6.8429]
[1750840121589,7.60437396,146.1,146.07,6.8422]
[1750840121781,3.37542456,146.1,146.07,6.8422]
[1750840121982,34.48,146.11,146.07,6.36153301]
[1750840122289,34.48,146.11,146.08,6.36153301]
[1750840122485,34.48,146.11,146.09,6.8412]
[1750840125081,34.48,146.11,146.1,6.8411]
[1750840125282,37.77542456,146.14,146.09,6.36153301]
[1750840125478,44.61502456,146.14,146.11,6.8406]
[1750840125785,37.77542456,146.14,146.11,6.8406]
[1750840126178,41.99722975,146.14,146.11,6.8406]
[1750840126377,37.77542456,146.14,146.11,6.8406]
[1750840126576,44.61502456,146.14,146.11,6.8406]
[1750840127181,48.83877384,146.14,146.11,6.8406]
[1750840127382,4.22374928,146.13,146.11,6.8406]
[1750840127779,4.22374928,146.13,146.12,6.8401]
[1750840127986,38.62374928,146.14,146.12,6.8401]
[1750840128489,34.4,146.14,146.12,6.8401]
[1750840128691,38.62413492,146.14,146.12,6.8401]
[1750840129188,45.46333492,146.14,146.12,6.8401]
[1750840129389,41.2392,146.14,146.12,6.8401]
[1750840129589,45.46333492,146.14,146.12,6.8401]
[1750840129790,41.2392,146.14,146.12,6.8401]
[1750840129991,45.46333492,146.14,146.12,6.8401]
[1750840130193,41.2392,146.14,146.12,6.8401]
[1750840130485,45.46333492,146.14,146.12,6.8401]
[1750840130799,34.4,146.14,146.13,6.8397]
[1750840141494,34.4,146.14,146.12,6.8399]
[1750840141708,34.4,146.14,146.11,6.36153301]
[1750840142201,34.4,146.14,146.12,6.8399]
[1750840144008,41.2392,146.14,146.12,6.8399]
[1750840144897,34.4,146.14,146.12,6.8399]
[1750840145704,34.4,146.14,146.13,6.8397]
[1750840145900,39.18552779,146.14,146.13,6.8397]
[1750840148307,34.4,146.14,146.13,6.8397]
[1750840148508,39.18453034,146.14,146.13,6.8397]
[1750840150914,39.18453034,146.14,146.11,6.36153301]
[1750840151112,4.78453034,146.13,146.11,6.36153301]
[1750840151413,11.62453034,146.13,146.11,13.20193301]
[1750840151709,6.84,146.13,146.11,6.8404]
[1750840152209,10.21542456,146.13,146.11,6.8404]
[1750840152598,6.8405,146.12,146.1,13.20253301]
[1750840152798,6.8405,146.12,146.1,6.841]
[1750840153523,4.78663058,146.11,146.08,11.16783301]
[1750840153706,7.61012921,146.13,146.08,11.16783301]
[1750840153906,6.841,146.11,146.08,13.20323301]
[1750840154317,6.8412,146.1,146.08,13.20323301]
[1750840155210,15.00356945,146.09,146.08,6.36153301]
[1750840155409,8.16206945,146.09,146.07,6.36153301]
[1750840156316,6.8424,146.08,146.06,13.20433301]
[1750840156518,6.8424,146.08,146.05,6.36153301]
[1750840156519,11.62904489,146.08,146.05,6.36153301]
[1750840156716,11.62904489,146.08,146.05,13.20453301]
[1750840156916,6.8424,146.08,146.05,13.20453301]
[1750840157220,11.61712547,146.08,146.05,13.20453301]
[1750840157718,6.8439,146.04,146.03,8.45954402]
[1750840157910,42.52929308,146.04,145.99,5.6631612]
[1750840158112,3.37456761,146.0,145.99,5.6631612]
[1750840158418,37.75456761,146.0,145.99,5.6631612]
[1750840158613,44.60036761,146.0,145.99,5.6631612]
[1750840162824,44.6041168,146.0,145.99,5.6631612]
[1750840166927,3.3783168,146.04,145.99,5.6631612]
[1750840167318,3.3783168,146.04,145.99,12.5092612]
[1750840167918,6.8446,146.03,146.0,6.8457]
[1750840168120,3.3783168,146.04,146.0,6.8457]
[1750840168326,3.3783168,146.04,145.99,5.6631612]
[1750840169125,10.2224168,146.04,146.01,6.8452]
[1750840169331,10.2224168,146.04,145.99,5.6631612]
[1750840169521,3.3783168,146.04,145.99,5.6631612]
[1750840170022,6.8445,146.03,145.99,5.6631612]
[1750840172219,10.2224168,146.04,146.01,6.845]
[1750840174024,6.8454,146.01,145.99,5.6631612]
[1750840174232,41.2454,146.01,145.99,5.6631612]
[1750840175127,41.2454,146.01,145.99,12.5091612]
[1750840175328,34.4,146.01,145.99,5.6631612]
[1750840175731,34.4,146.01,146.0,6.8458]
[1750840176531,591.04,146.08,145.99,5.6631612]
[1750840176532,34.4,146.04,145.99,5.6631612]
[1750840176923,34.4,146.04,145.99,7.9519612]
[1750840177624,34.4,146.04,145.99,11.330278]
[1750840179027,34.4,146.04,146.03,6.8443]
[1750840180127,34.4,146.04,146.02,6.8447]
[1750840182428,41.2442,146.04,146.01,6.8451]
[1750840182929,41.2442,146.04,145.99,7.9519612]
[1750840183428,41.2442,146.04,146.02,6.8448]
[1750840184226,6.8457,146.0,145.99,5.6631612]
[1750840184428,41.4457,146.0,145.99,5.6631612]
[1750840186930,44.82191122,146.0,145.99,5.6631612]
[1750840189525,41.4457,146.0,145.99,5.6631612]
[1750840194031,34.6,146.0,145.99,5.6631612]
[1750840194236,37.97787146,146.0,145.99,5.6631612]
[1750840194733,44.82367146,146.0,145.99,5.6631612]
[1750840195831,6.8477,145.96,145.94,4.6628]
[1750840196238,3.37787146,145.98,145.94,4.6628]
[1750840196441,3.37787146,145.98,145.95,6.8479]
[1750840197132,6.8475,145.97,145.94,11.5111]
[1750840197743,6.8475,145.97,145.95,6.8479]
[1750840198045,3.37787146,145.98,145.94,4.6628]
[1750840198238,37.97787146,146.0,145.94,4.6628]
[1750840198542,6.8465,145.99,145.94,4.6628]
[1750840198743,6.8465,145.99,145.96,6.8472]
[1750840199044,6.8465,145.99,145.94,4.6628]
[1750840199340,591.04,146.08,145.94,4.6628]
[1750840199642,3.37787146,146.03,145.95,11.84205835]
[1750840199842,6.8454,146.01,145.99,6.846]
[1750840200237,145.1277146,146.0,145.89,8.50534544]
[1750840200442,145.1277146,146.0,145.86,4.4997]
[1750840200443,3.37902839,145.92,145.86,4.4997]
[1750840200745,3.37902839,145.94,145.86,20.57500873]
[1750840200946,3.37902839,145.94,145.87,12.69628034]
[1750840201149,3.37902839,145.94,145.89,6.8505]
[1750840201350,3.37902839,145.94,145.86,20.57500873]
[1750840201546,10.22772839,145.94,145.87,12.69628034]
[1750840201850,3.37902839,145.94,145.87,47.31628034]
[1750840202045,34.62,145.95,145.88,3.37902839]
[1750840202246,34.62,145.95,145.88,16.07530873]
[1750840203251,3.37902839,145.94,145.88,12.69628034]
[1750840203439,3.37902839,145.94,145.87,47.31628034]
[1750840203640,3.37902839,145.94,145.92,6.8492]
[1750840203861,4.16731888,145.98,145.91,34.62]
[1750840204147,3.37883107,145.93,145.86,15.00458034]
[1750840204346,3.37883107,145.91,145.87,2.3039]
[1750840205152,3.37883107,145.92,145.89,6.8507]
[1750840205546,3.37883107,145.92,145.87,2.3039]
[1750840205547,10.22843107,145.92,145.87,2.3039]
[1750840205739,10.22843107,145.92,145.88,6.8511]
[1750840205939,3.37883107,145.9,145.87,2.3039]
[1750840207156,3.37883107,145.9,145.88,6.8514]
[1750840208152,3.37883107,145.9,145.87,9.1557]
[1750840208347,3.37883107,145.9,145.87,2.3039]
[1750840208850,6.8512,145.89,145.87,2.3039]
[1750840209255,6.8516,145.88,145.86,2.3083]
[1750840209550,6.8516,145.88,145.85,6.8526]
[1750840209852,3.38233321,145.89,145.85,6.8526]
[1750840210154,3.38233321,145.89,145.86,6.8523]
[1750840210155,10.23343321,145.89,145.86,6.8523]
[1750840211554,10.23343321,145.89,145.87,6.8518]
[1750840213158,39.64233321,145.89,145.82,4.6207]
[1750840213456,3.38233321,145.86,145.85,6.8528]
[1750840213850,36.26,145.89,145.82,4.6207]
[1750840214055,3.38233321,145.87,145.82,4.6207]
[1750840214653,6.8526,145.86,145.83,6.8535]
[1750840215150,39.64233321,145.85,145.78,2.1982]
[1750840215353,3.38233321,145.83,145.78,2.1982]
[1750840216353,10.23613321,145.83,145.78,2.1982]
[1750840216858,3.38233321,145.83,145.81,6.8547]
[1750840217152,36.26,145.85,145.78,2.1982]